bitfinex-derivatives/quotes_ETHF0:USTF0_20230702
["timestamp","ask_amount","ask_price","bid_price","bid_amount"]
[1688264306246,0.31277,1918.4,1918.3,6.61040283]
[1688264306740,0.31277,1918.4,1918.3,6.32368648]
[1688264307145,0.31277,1918.4,1918.3,6.61040283]
[1688264311741,0.31277,1918.4,1918.3,6.32368648]
[1688264311949,0.21078832,1918.4,1918.3,6.32368648]
[1688264312259,0.21078832,1918.4,1918.3,6.61040283]
[1688264313257,10.04128832,1918.4,1918.3,0.74149648]
[1688264313461,10.04128832,1918.4,1918.0,0.1]
[1688264313462,4.681,1918.3,1918.0,0.1]
[1688264313759,8.20162,1918.1,1918.0,0.1]
[1688264314060,12.53822931,1918.1,1918.0,0.1]
[1688264314561,17.68772931,1918.1,1918.0,0.1]
[1688264315363,17.68772931,1918.1,1917.6,0.31289]
[1688264315561,4.681,1917.7,1917.6,0.31289]
[1688264315863,4.99388,1917.7,1917.5,0.56748412]
[1688264316164,4.99388,1917.7,1917.1,5.69626]
[1688264316165,7.8888,1917.6,1917.0,1.19289]
[1688264316365,7.8888,1917.1,1917.0,0.15]
[1688264316557,8.20178,1917.1,1917.0,0.15]
[1688264316859,0.31298,1917.1,1917.0,0.43671635]
[1688264317057,0.78246,1917.2,1917.0,5.49471635]
[1688264317258,0.78246,1917.2,1917.1,7.8888]
[1688264317454,0.78246,1917.2,1917.1,4.99398]
[1688264317652,0.78246,1917.2,1917.1,0.59969635]
[1688264317861,0.78246,1917.2,1917.1,0.31298]
[1688264318364,0.78246,1917.2,1917.0,5.67350411]
[1688264318365,8.67126,1917.2,1917.0,0.15]
[1688264318661,4.99398,1917.1,1916.7,1.20631083]
[1688264318863,4.99403,1916.8,1916.7,0.73679083]
[1688264319059,0.31303,1916.8,1916.7,0.31304]
[1688264319560,0.31303,1916.8,1916.7,0.59975635]
[1688264319863,0.31303,1916.8,1916.7,0.70375635]
[1688264320073,4.99403,1916.8,1916.6,3.99042]
[1688264320368,7.8888,1916.7,1916.5,0.41785655]
[1688264320555,7.8888,1916.7,1916.5,0.31307]
[1688264320556,4.99406,1916.6,1916.5,0.31307]
[1688264321060,4.99406,1916.6,1916.5,2.11126467]
[1688264321253,4.99406,1916.6,1916.5,1.69419467]
[1688264321458,4.99406,1916.6,1916.5,2.29399102]
[1688264322163,4.99406,1916.6,1916.3,10.99056]
[1688264322164,12.88286,1916.6,1916.0,0.78288]
[1688264322366,4.681,1916.0,1915.5,0.78299]
[1688264322661,5.52224,1915.5,1915.1,6.71679358]
[1688264322866,5.52224,1915.5,1914.4,15.21445496]
[1688264322867,5.5223,1915.1,1914.3,7.97516837]
[1688264323161,0.3133,1915.1,1914.9,3.2078]
[1688264323368,0.93991,1915.3,1914.8,1.35085412]
[1688264323369,4.681,1914.9,1914.8,1.35085412]
[1688264323665,4.681,1914.9,1914.6,3.2078]
[1688264323869,4.681,1914.9,1914.8,3.2078]
[1688264324170,4.9943,1915.1,1914.8,3.52115]
[1688264324478,12.5698,1914.9,1914.7,0.78338]
[1688264324762,0.31337,1914.7,1914.4,0.42380357]
[1688264325068,0.31337,1914.7,1914.1,0.78365]
[1688264325069,8.2022,1914.5,1914.1,0.78365]
[1688264325262,4.681,1914.2,1914.1,0.31346]
[1688264325470,9.67545,1914.2,1914.0,0.1]
[1688264325663,4.681,1914.1,1914.0,0.1]
[1688264325863,4.99447,1914.1,1914.0,0.1]
[1688264326168,4.681,1914.2,1914.0,2.83483868]
[1688264326468,4.681,1914.1,1914.0,2.83483868]
[1688264326668,4.99446,1914.1,1914.0,2.52135868]
[1688264326974,8.20226,1914.1,1914.0,2.52135868]
[1688264327173,5.0,1913.9,1913.6,0.31354]
[1688264327468,12.5698,1913.7,1913.4,0.31356]
[1688264327765,0.31358,1913.4,1913.0,0.1]
[1688264327966,12.88343,1913.1,1913.0,0.1]
[1688264328170,17.88343,1913.1,1913.0,0.1]
[1688264328470,9.362,1913.1,1913.0,2.1750476]
[1688264328683,4.681,1913.1,1913.0,2.77540395]
[1688264328971,0.31358,1913.4,1913.2,0.31361]
[1688264329164,4.681,1913.3,1913.2,1.16781047]
[1688264329362,4.681,1913.3,1913.2,4.37561047]
[1688264329572,4.681,1913.3,1913.1,0.7840602]
[1688264329871,5.0,1913.2,1913.1,0.7840602]
[1688264330073,9.99461,1913.2,1913.1,0.7840602]
[1688264330269,9.99461,1913.2,1912.7,0.78423]
[1688264330468,4.99468,1912.8,1912.7,0.78423]
[1688264330665,4.681,1912.8,1912.7,0.60040635]
[1688264330872,8.0632,1913.0,1912.7,3.80820635]
[1688264331065,7.264,1913.2,1912.9,3.99192]
[1688264331269,7.252,1913.3,1913.2,0.31361]
[1688264331475,7.251,1913.5,1913.2,0.31361]
[1688264331659,7.251,1913.5,1913.4,3.52138]
[1688264332266,7.251,1913.5,1913.4,0.31358]
[1688264332267,7.56456,1913.5,1913.4,0.31358]
[1688264332570,5.93466126,1913.5,1913.4,0.31358]
[1688264332766,0.94044,1914.1,1913.4,7.61058]
[1688264332970,0.31342,1914.4,1914.0,10.5058]
[1688264333179,7.251,1914.7,1914.3,3.2078]
[1688264333371,7.251,1914.7,1914.6,3.2078]
[1688264333372,5.31337,1914.7,1914.6,3.2078]
[1688264333572,5.31337,1914.7,1914.6,3.52117]
[1688264333573,12.63637,1914.7,1914.6,3.52117]
[1688264333771,12.63637,1914.7,1914.5,0.78346]
[1688264333966,5.0,1914.5,1914.4,0.31341]
[1688264334277,12.5644,1914.5,1914.2,0.7836]
[1688264334572,0.94021,1914.7,1914.4,0.31342]
[1688264334762,5.0,1914.3,1914.1,0.94026]
[1688264334965,5.0,1914.3,1913.8,3.2078]
[1688264334966,12.255,1914.2,1914.0,0.31347]
[1688264335162,12.255,1914.2,1913.8,0.78372]
[1688264335163,5.3135,1914.0,1913.8,0.78372]
[1688264335363,5.3135,1914.0,1913.8,0.28671635]
[1688264335364,0.3135,1914.0,1913.8,0.28671635]
[1688264335566,0.78371,1914.1,1913.8,7.92322635]
[1688264335767,3.52910657,1914.3,1914.1,0.31347]
[1688264335768,0.32130657,1914.3,1914.1,0.31347]
[1688264335970,0.32130657,1914.3,1914.2,8.49065047]
[1688264336173,5.0,1914.0,1913.9,0.31347]
[1688264336473,0.31352,1913.8,1913.5,0.78385]
[1688264336774,0.31352,1913.8,1913.7,0.31353]
[1688264336966,8.19756,1914.0,1913.7,10.79233]
[1688264336967,0.94056,1914.0,1913.7,10.79233]
[1688264337164,0.94056,1914.0,1913.9,0.3135]
[1688264337362,0.94056,1914.0,1913.9,7.6365]
[1688264337571,0.32128657,1914.3,1913.9,10.8443]
[1688264337874,1e-08,1914.3,1914.2,10.91725]
[1688264338078,0.78325,1915.2,1914.4,3.0]
[1688264338275,0.78325,1915.2,1915.0,10.5308]
[1688264338578,12.255,1915.1,1914.9,0.78333]
[1688264338775,0.31332,1915.0,1914.8,0.94003]
[1688264339079,0.31332,1915.0,1914.9,0.31333]
[1688264339673,7.57732,1915.0,1914.7,0.7911933]
[1688264339879,7.252,1914.8,1914.7,0.0078333]
[1688264340072,7.56535,1914.8,1914.7,0.0078333]
[1688264340272,14.87335,1914.8,1914.3,0.31341]
[1688264340476,14.87335,1914.8,1913.9,0.94043]
[1688264340477,5.0,1914.1,1913.9,0.94043]
[1688264340680,10.81028,1914.0,1913.4,8.23867]
[1688264340980,14.6308,1913.5,1913.2,0.94085]
[1688264341177,14.6308,1913.5,1912.8,16.2327]
[1688264341178,5.0,1913.1,1912.7,0.31369]
[1688264341476,11.503,1913.2,1912.2,0.78435]
[1688264341477,0.3137,1912.7,1912.2,0.78435]
[1688264341669,5.0,1912.9,1912.3,0.56748412]
[1688264341670,3.2078,1912.4,1912.3,0.56748412]
[1688264341876,0.00784375,1912.5,1912.3,14.07515487]
[1688264342078,0.32157375,1912.5,1912.3,2.88591487]
[1688264342280,0.00784375,1912.5,1912.3,6.09371487]
[1688264342588,0.31371,1912.7,1912.4,11.81675]
[1688264342771,0.31372,1912.6,1912.5,0.28671635]
[1688264342981,0.31371,1912.6,1912.5,2.18618144]
[1688264343273,14.96151,1912.6,1912.5,1.58573509]
[1688264343487,31.46451,1912.6,1912.5,1.57788807]
[1688264343684,31.46451,1912.6,1912.5,2.11198639]
[1688264343986,31.46451,1912.6,1912.4,0.00784293]
[1688264343987,26.46451,1912.6,1912.4,0.00784293]
[1688264344182,0.31371,1912.6,1912.4,0.29455928]
[1688264344376,0.31371,1912.6,1912.4,0.60829928]
[1688264344681,0.79213293,1912.7,1912.5,5.55742478]
[1688264344883,0.94115,1912.9,1912.6,11.80171635]
[1688264345085,0.31365,1913.0,1912.8,3.2078]
[1688264345283,0.31365,1913.0,1912.8,0.60037635]
[1688264345481,11.488,1912.9,1912.6,3.99203]
[1688264345783,0.31367,1912.8,1912.7,5.42512783]
[1688264345975,0.78419,1912.9,1912.7,16.81912783]
[1688264345976,0.0078421,1912.9,1912.7,16.81912783]
[1688264346174,0.0078421,1912.9,1912.7,5.42512783]
[1688264346375,0.0078421,1912.9,1912.8,11.97048412]
[1688264346376,1e-08,1912.9,1912.8,11.97048412]
[1688264346581,10.2008,1913.7,1913.0,0.105]
[1688264346582,0.31353,1913.7,1913.0,0.105]
[1688264346775,12.27965,1914.3,1913.6,14.6228]
[1688264347083,0.31334,1914.9,1914.3,0.105]
[1688264347379,11.81634,1914.9,1914.5,0.7835]
[1688264347578,11.71239,1914.6,1914.3,0.105]
[1688264347784,0.00783413,1914.9,1914.6,0.41839]
[1688264347975,0.00783413,1914.9,1914.8,15.02015]
[1688264348178,11.82417413,1914.9,1914.6,0.94007]
[1688264348377,11.435,1914.7,1914.6,0.88086412]
[1688264348582,0.32117413,1914.9,1914.6,15.60866412]
[1688264348583,0.00783413,1914.9,1914.6,15.60866412]
[1688264348777,0.00783413,1914.9,1914.8,3.3128]
[1688264348978,0.31331,1915.3,1914.9,0.105]
[1688264349186,1.05948315,1915.2,1915.1,3.2078]
[1688264349380,1.05948315,1915.2,1915.1,0.60001635]
[1688264349583,0.27623315,1915.2,1915.1,3.91281635]
[1688264349883,0.58952315,1915.2,1915.1,3.91281635]
[1688264350085,0.58952315,1915.2,1915.1,3.5211]
[1688264350288,0.27623315,1915.2,1915.1,3.91281635]
[1688264350687,0.27623315,1915.2,1915.1,15.30681635]
[1688264351096,0.27623315,1915.2,1915.1,3.80781635]
[1688264351293,0.58952315,1915.2,1915.1,3.80781635]
[1688264351481,0.27623315,1915.2,1915.1,3.80781635]
[1688264351792,0.27623315,1915.2,1915.1,0.3133]
[1688264351793,0.58952315,1915.2,1915.1,0.3133]
[1688264352182,0.58952315,1915.2,1915.1,0.70501635]
[1688264352494,0.27623315,1915.2,1915.1,3.91281635]
[1688264352679,0.58952315,1915.2,1915.1,3.80781635]
[1688264352991,0.58952315,1915.2,1914.7,3.2078]
[1688264352992,5.0,1915.1,1914.7,3.2078]
[1688264353192,11.81632,1915.0,1914.8,0.41835]
[1688264353394,0.31332,1915.0,1914.9,0.28671635]
[1688264353589,0.31332,1915.0,1914.9,0.60005635]
[1688264353794,11.77603057,1915.0,1914.8,0.105]
[1688264353994,0.31332,1915.0,1914.9,0.60005635]
[1688264354191,0.93997,1915.2,1914.9,15.22285635]
[1688264354393,0.93997,1915.2,1914.9,0.28671635]
[1688264354394,0.31332,1915.0,1914.9,0.28671635]
[1688264354598,11.74832,1915.0,1914.6,0.94002]
[1688264354900,0.31332,1915.0,1914.7,0.56748412]
[1688264355099,11.488,1914.9,1914.8,0.28671635]
[1688264355296,11.80134,1914.9,1914.6,0.94002]
[1688264355603,11.488,1914.9,1914.8,0.11320619]
[1688264355791,19.6478,1915.1,1914.7,0.43774294]
[1688264355989,16.44,1915.1,1914.7,0.43774294]
[1688264356192,11.12168,1914.9,1914.7,0.28671635]
[1688264356395,8.2078,1915.1,1914.8,0.3135087]
[1688264356699,11.496,1915.2,1914.8,0.67248412]
[1688264356896,0.00783228,1915.3,1914.9,3.33553184]
[1688264356897,16.51083228,1915.3,1914.9,3.33553184]
[1688264357297,16.51083228,1915.3,1914.9,3.2078]
[1688264357697,16.51083228,1915.3,1915.1,3.2078]
[1688264357698,0.00783228,1915.3,1915.1,3.2078]
[1688264358000,0.00783228,1915.3,1915.2,0.28671635]
[1688264358900,0.00783228,1915.3,1915.1,3.77528412]
[1688264359203,0.00783228,1915.3,1914.8,14.7108]
[1688264359396,11.503,1915.2,1914.8,3.2078]
[1688264359595,11.503,1915.2,1914.8,3.77528412]
[1688264359798,0.00783228,1915.3,1915.1,3.2078]
[1688264360495,0.00783228,1915.3,1915.2,0.28671635]
[1688264361102,0.00783228,1915.3,1915.2,11.78571635]
[1688264362409,0.00783228,1915.3,1915.2,11.68071635]
[1688264363316,0.00783228,1915.3,1915.2,11.78471635]
[1688264363915,0.00783228,1915.3,1915.2,11.68071635]
[1688264365016,0.00783228,1915.3,1915.2,11.78471635]
[1688264365819,0.4886545,1915.3,1915.2,11.78471635]
[1688264366022,0.00783228,1915.3,1915.2,11.78471635]
[1688264366220,0.48864432,1915.3,1915.2,11.78471635]
[1688264368329,0.48864432,1915.3,1915.2,11.68071635]
[1688264368929,0.48864432,1915.3,1915.2,11.78471635]
[1688264369120,14.6068,1916.0,1915.2,11.78471635]
[1688264369426,0.3605376,1915.9,1915.6,14.6108]
[1688264369625,0.3605376,1915.9,1915.0,5.0]
[1688264369626,0.3605376,1915.9,1915.4,14.6228]
[1688264369917,14.6958,1916.0,1915.4,14.6228]
[1688264369918,0.36052658,1915.8,1915.4,14.6228]
[1688264370119,0.36835701,1915.8,1915.5,0.56748412]
[1688264370323,0.00783043,1915.8,1915.6,3.49451635]
[1688264370520,0.36051546,1915.7,1915.6,3.49451635]
[1688264370823,0.36051546,1915.7,1915.6,14.99251635]
[1688264371029,0.62905575,1915.7,1915.6,14.99251635]
[1688264371326,0.00783043,1915.8,1915.6,14.99251635]
[1688264371528,0.00783043,1915.8,1915.7,11.41]
[1688264372027,0.00783043,1915.8,1915.7,11.97748412]
[1688264372819,0.00783043,1915.8,1915.7,15.18528412]
[1688264373019,14.6267867,1916.4,1915.7,15.18528412]
[1688264373233,14.6267867,1916.4,1915.9,3.2078]
[1688264373621,14.6267867,1916.4,1915.7,14.6178]
[1688264374022,0.00506679,1916.2,1915.7,14.6178]
[1688264374231,14.65886679,1916.2,1915.7,3.2078]
[1688264374626,3.21286679,1916.2,1915.8,12.07048412]
[1688264375629,0.00506679,1916.2,1915.8,12.07048412]
[1688264376034,0.00506679,1916.2,1915.9,3.2078]
[1688264376235,0.00506679,1916.2,1916.0,0.85420047]
[1688264376638,3.21286679,1916.2,1915.8,11.503]
[1688264377227,3.21286679,1916.2,1915.8,12.07048412]
[1688264377631,0.00506679,1916.2,1915.8,12.07048412]
[1688264377936,0.00506679,1916.2,1915.8,15.27828412]
[1688264378642,0.00506679,1916.2,1915.8,12.07048412]
[1688264378837,0.00506679,1916.2,1915.8,15.27828412]
[1688264379741,0.00506679,1916.2,1916.1,11.415]
[1688264379938,0.00506679,1916.2,1916.1,12.26920047]
[1688264380441,0.00506679,1916.2,1916.1,0.85420047]
[1688264385643,1.08136153,1916.2,1916.1,0.59984635]
[1688264385841,0.31818679,1916.2,1916.1,0.31313]
[1688264386041,1.08135023,1916.2,1916.1,0.31313]
[1688264386243,1.08135023,1916.2,1916.1,0.59984635]
[1688264388042,0.76823023,1916.2,1916.1,0.59984635]
[1688264389346,1.08135023,1916.2,1916.1,0.59984635]
[1688264391139,1.08135023,1916.2,1916.1,0.31313]
[1688264392447,6.2455943,1916.2,1916.1,0.31313]
[1688264393645,1.08135023,1916.2,1916.1,0.31313]
[1688264393950,1.08135023,1916.2,1916.1,0.59984635]
[1688264395149,1.08135023,1916.2,1916.1,12.00984635]
[1688264402152,1.08135023,1916.2,1916.1,11.72313]
[1688264402849,1.08135023,1916.2,1916.1,12.00984635]
[1688264405164,0.76823023,1916.2,1916.1,12.00984635]
[1688264405873,0.76823023,1916.2,1916.1,7.88184635]
[1688264406158,0.23077719,1916.2,1916.1,7.88184635]
[1688264406869,5.16424407,1916.5,1916.2,0.104]
[1688264407168,6.04609322,1916.8,1916.6,0.31305]
[1688264407361,7.29344495,1916.9,1916.7,10.80284]
[1688264407554,1.24735173,1916.9,1916.8,7.84273635]
[1688264407754,1.87337173,1917.0,1916.8,7.84273635]
[1688264407957,0.93434173,1917.0,1916.9,11.39629412]
[1688264408162,7.76294495,1917.1,1916.9,11.39629412]
[1688264408365,7.76294495,1917.1,1917.0,7.59471635]
[1688264408567,7.76294495,1917.1,1917.0,7.90770635]
[1688264408963,0.78251,1917.1,1917.0,7.90770635]
[1688264409378,7.29342495,1917.2,1917.0,7.90770635]
[1688264409566,6.98043495,1917.2,1917.1,11.05528412]
[1688264409757,6.7509496,1917.3,1917.1,11.36825412]
[1688264409961,0.93452876,1917.3,1917.2,7.52971635]
[1688264410161,6.35903322,1917.4,1917.2,8.31207635]
[1688264410162,7.76298198,1917.4,1917.2,8.31207635]
[1688264410362,7.76298198,1917.4,1917.3,7.285]
[1688264410662,0.93452876,1917.4,1917.3,10.80574]
[1688264410860,5.6750658,1917.8,1917.5,0.31291]
[1688264410861,13.63803569,1917.8,1917.5,0.31291]
[1688264411070,6.88708609,1917.8,1917.7,10.4998]
[1688264411268,1.71703988,1917.8,1917.7,10.81267]
[1688264411457,0.78228,1917.8,1917.7,11.09938635]
[1688264411767,0.31289,1917.9,1917.7,11.09938635]
[1688264412065,0.31289,1917.9,1917.8,7.285]
[1688264412364,0.31289,1917.9,1917.8,7.59786]
[1688264412567,0.31289,1917.9,1917.8,8.16534412]
[1688264412962,0.31289,1917.9,1917.8,7.285]
[1688264413370,7.61189,1917.9,1917.6,7.28]
[1688264413672,7.61189,1917.9,1917.6,7.59289]
[1688264414075,0.31289,1917.9,1917.7,7.56871635]
[1688264414373,0.31289,1917.9,1917.8,7.61586]
[1688264414568,0.31289,1917.9,1917.8,7.303]
[1688264415458,0.31289,1917.9,1917.8,7.61586]
[1688264415662,0.31289,1917.9,1917.8,8.18334412]
[1688264415860,0.31289,1917.9,1917.8,12.35534412]
[1688264416568,0.1,1918.0,1917.8,23.83034412]
[1688264416863,0.31283,1918.0,1917.9,15.28234635]
[1688264417063,1.04272,1918.1,1917.9,15.28234635]
[1688264417271,1.04272,1918.1,1918.0,0.56748412]
[1688264417471,13.87193169,1918.1,1918.0,0.56748412]
[1688264417673,8.05587867,1918.1,1918.0,0.88031412]
[1688264418568,8.05587867,1918.1,1918.0,0.31283]
[1688264418966,14.80648703,1918.1,1918.0,0.31283]
[1688264419174,8.05553743,1918.1,1918.0,0.31283]
[1688264419867,8.05553743,1918.1,1917.9,11.475]
[1688264420068,8.05553743,1918.1,1918.0,0.31283]
[1688264420275,14.80648703,1918.1,1917.7,12.26490104]
[1688264420465,7.01281743,1918.0,1917.7,12.26490104]
[1688264420672,0.31285,1917.9,1917.7,12.26490104]
[1688264420872,0.31285,1917.9,1917.7,12.55161739]
[1688264421373,7.32566743,1917.9,1917.7,12.55161739]
[1688264421877,1.24774658,1917.9,1917.8,11.475]
[1688264422069,0.93489658,1917.9,1917.8,23.74934412]
[1688264422374,0.31285,1917.9,1917.8,23.74934412]
[1688264422973,0.78212,1918.0,1917.8,23.74934412]
[1688264423175,0.78212,1918.0,1917.9,3.49451635]
[1688264423480,0.78212,1918.0,1917.9,3.80736635]
[1688264424477,0.93846,1918.2,1917.9,3.80736635]
[1688264424671,0.93846,1918.2,1918.1,14.6828]
[1688264424868,0.93846,1918.2,1918.1,15.28233635]
[1688264425775,0.3128,1918.3,1918.1,15.28233635]
[1688264426081,0.3128,1918.3,1918.2,0.88028412]
[1688264427182,0.3128,1918.3,1918.2,0.3128]
[1688264430079,1.91680564,1918.3,1918.2,0.3128]
[1688264430379,0.3128,1918.3,1918.2,0.3128]
[1688264430576,1.91679603,1918.3,1918.2,0.3128]
[1688264430880,0.3128,1918.3,1918.2,0.3128]
[1688264431082,1.91678712,1918.3,1918.2,0.3128]
[1688264431385,0.3128,1918.3,1918.2,0.3128]
[1688264431580,1.91677716,1918.3,1918.2,0.3128]
[1688264431891,0.3128,1918.3,1918.2,0.3128]
[1688264432078,1.91676765,1918.3,1918.2,0.3128]
[1688264432277,0.3128,1918.3,1918.2,0.3128]
[1688264432480,1.91675814,1918.3,1918.2,0.3128]
[1688264433188,1.91673814,1918.3,1918.2,0.3128]
[1688264434286,1.91673814,1918.3,1918.2,11.7448]
[1688264435183,1.91673814,1918.3,1918.2,0.3128]
[1688264437783,1.91673814,1918.3,1918.1,0.31282]
[1688264439586,2.8516737,1918.3,1918.1,0.31282]
[1688264439785,6.0594737,1918.3,1917.9,0.78205]
[1688264439982,11.446,1918.2,1917.9,0.78205]
[1688264440292,0.31281,1918.1,1917.9,0.78205]
[1688264440488,0.31281,1918.1,1917.9,1.06876635]
[1688264441496,0.31281,1918.1,1918.0,11.475]
[1688264441688,0.31281,1918.1,1918.0,11.78782]
[1688264444898,2.45347235,1918.1,1918.0,11.78782]
[1688264447692,2.45347235,1918.1,1918.0,0.31282]
[1688264448792,2.45347235,1918.1,1918.0,0.59953635]
[1688264449796,3.38841269,1918.1,1918.0,0.31282]
[1688264450696,3.38841269,1918.1,1918.0,0.59953635]
[1688264451699,5.66127235,1918.1,1917.9,0.31284]
[1688264451887,6.79088599,1918.0,1917.9,0.31284]
[1688264452091,1.24776034,1918.0,1917.9,0.31284]
[1688264452296,3.38829539,1918.0,1917.9,0.31284]
[1688264452498,3.38829539,1918.0,1917.9,0.59955635]
[1688264452695,9.50019275,1918.0,1917.9,0.59955635]
[1688264453501,10.17918138,1918.0,1917.9,0.59955635]
[1688264453894,10.18777005,1918.0,1917.9,0.31284]
[1688264454090,3.38829539,1918.0,1917.9,0.31284]
[1688264454294,2.45335505,1918.0,1917.9,0.31284]
[1688264455702,2.45335505,1918.0,1917.9,0.59955635]
[1688264458299,2.14053505,1918.0,1917.9,15.24835635]
[1688264461701,0.31283,1918.0,1917.9,12.04055635]
[1688264461907,2.45319369,1918.0,1917.9,15.24835635]
[1688264462306,2.14036369,1918.0,1917.9,15.24835635]
[1688264462502,8.94913947,1918.0,1917.9,15.24835635]
[1688264462704,9.88407981,1918.0,1917.9,15.24835635]
[1688264463703,9.8839962,1918.0,1917.9,15.24835635]
[1688264465911,10.1968262,1918.0,1917.9,15.38085616]
[1688264466103,3.38813403,1918.0,1917.9,15.38085616]
[1688264466306,2.45319369,1918.0,1917.9,15.66757251]
[1688264467705,2.45319369,1918.0,1917.9,15.24835635]
[1688264468611,2.45319369,1918.0,1917.7,12.26488104]
[1688264468805,2.45319369,1918.0,1917.7,0.00782104]
[1688264469006,3.38813403,1918.0,1917.7,0.32069104]
[1688264469418,3.38813403,1918.0,1917.7,0.31287]
[1688264469419,14.86313403,1918.0,1917.7,0.31287]
[1688264469606,4.14274034,1917.9,1917.7,0.31287]
[1688264469807,0.31286,1917.8,1917.7,0.31287]
[1688264470112,2.11758954,1917.8,1917.7,0.31287]
[1688264470302,0.31286,1917.8,1917.7,0.31287]
[1688264470505,2.11757951,1917.8,1917.7,0.31287]
[1688264471111,2.11757951,1917.8,1917.7,0.59958635]
[1688264471811,2.11757951,1917.8,1917.7,0.31287]
[1688264473217,2.11757951,1917.8,1917.7,0.59958635]
[1688264475213,1.80471951,1917.8,1917.7,0.59958635]
[1688264475407,0.32064792,1917.9,1917.7,0.59958635]
[1688264475611,0.32064792,1917.9,1917.8,4.08814412]
[1688264475810,0.32064792,1917.9,1917.8,8.78314412]
[1688264476210,0.32064792,1917.9,1917.8,5.57534412]
[1688264476508,0.32064792,1917.9,1917.8,5.00786]
[1688264477317,0.32064792,1917.9,1917.8,4.695]
[1688264477629,0.32064792,1917.9,1917.8,5.00786]
[1688264480218,0.00779792,1917.9,1917.8,8.21566]
[1688264480718,0.32064792,1917.9,1917.8,8.21566]
[1688264482321,0.00779792,1917.9,1917.8,8.21566]
[1688264483522,0.32064792,1917.9,1917.8,8.21566]
[1688264486034,0.32064792,1917.9,1917.8,8.62830543]
[1688264487530,0.00779792,1917.9,1917.8,8.62830543]
[1688264487724,0.00779792,1917.9,1917.8,8.73230543]
[1688264487925,6.81419518,1917.9,1917.8,13.42730543]
[1688264489329,0.00779792,1917.9,1917.8,13.42730543]
[1688264490031,1.69726463,1917.9,1917.8,13.42730543]
[1688264490432,2.01011463,1917.9,1917.8,8.62830543]
[1688264491634,1.69726463,1917.9,1917.8,8.62830543]
[1688264492035,1.69726463,1917.9,1917.8,13.28730543]
[1688264494342,1.69726463,1917.9,1917.8,13.39130543]
[1688264496542,1.69726463,1917.9,1917.8,13.28730543]
[1688264496748,2.01011463,1917.9,1917.8,13.28730543]
[1688264497137,1.69726463,1917.9,1917.8,13.39130543]
[1688264499949,7.82282529,1917.9,1917.8,13.39130543]
[1688264500256,8.75776563,1917.9,1917.8,13.39130543]
[1688264502049,8.75776563,1917.9,1917.8,13.28730543]
[1688264505247,6.80617852,1918.0,1917.9,5.0]
[1688264505448,1.26682822,1918.0,1917.9,10.86205047]
[1688264505851,2.20288896,1918.0,1917.9,10.86205047]
[1688264507155,1.85354096,1918.0,1917.9,10.86205047]
[1688264507348,2.12145728,1918.0,1917.9,10.86205047]
[1688264508940,1.18539654,1918.0,1917.9,10.86205047]
[1688264512648,1.18539654,1918.0,1917.9,5.86205047]
[1688264512845,1.18539654,1918.0,1917.9,10.86205047]
[1688264513253,0.93604454,1918.2,1917.9,10.86205047]
[1688264513555,0.93604454,1918.2,1918.1,8.21562]
[1688264513750,0.93604454,1918.2,1918.1,9.06982047]
[1688264513950,10.0782,1918.3,1918.1,9.06982047]
[1688264514156,10.0782,1918.3,1918.2,5.0078]
[1688264514351,11.01413834,1918.3,1918.2,5.0078]
[1688264515255,11.32692834,1918.3,1918.2,5.0078]
[1688264516253,11.01413834,1918.3,1918.2,5.0078]
[1688264516757,11.32691834,1918.3,1918.2,5.0078]
[1688264517752,11.01413834,1918.3,1918.2,5.0078]
[1688264519956,12.2003239,1918.3,1918.2,5.0078]
[1688264521355,11.26438556,1918.3,1918.2,5.0078]
[1688264523855,11.57716556,1918.3,1918.2,5.0078]
[1688264524355,11.26438556,1918.3,1918.2,5.0078]
[1688264526654,11.57716556,1918.3,1918.2,5.0078]
[1688264528851,11.26438556,1918.3,1918.2,5.0078]
[1688264530156,11.57716556,1918.3,1918.2,5.0078]
[1688264530359,11.57716556,1918.3,1918.2,4.695]
[1688264530562,12.51305235,1918.3,1918.1,5.88660838]
[1688264530867,12.51305235,1918.3,1918.0,0.31283]
[1688264530868,4.695,1918.2,1918.0,0.31283]
[1688264531052,0.31282,1918.1,1918.0,3e-05]
[1688264531251,1.19465733,1918.1,1918.0,0.31286]
[1688264532165,1.19465733,1918.1,1918.0,5.29457635]
[1688264532462,1.19465733,1918.1,1918.0,8.50237635]
[1688264532463,0.88183733,1918.1,1918.0,8.50237635]
[1688264532968,0.78203,1918.2,1918.0,8.92497829]
[1688264533151,0.78203,1918.2,1918.1,4.695]
[1688264533351,0.78203,1918.2,1918.1,5.00782]
[1688264534963,1.89773902,1918.2,1918.1,5.00782]
[1688264535364,1.89773902,1918.2,1918.1,5.86202047]
[1688264536267,1.89773902,1918.2,1918.1,5.00782]
[1688264536566,1.89773902,1918.2,1918.1,5.29453635]
[1688264536866,1.89773902,1918.2,1918.1,5.00782]
[1688264538164,1.89773902,1918.2,1918.1,5.29453635]
[1688264539256,1.11570902,1918.2,1918.1,5.29453635]
[1688264540964,1.42850902,1918.2,1918.1,5.29453635]
[1688264545273,1.42850902,1918.2,1918.1,5.00782]
[1688264547265,1.42850902,1918.2,1918.1,5.29453635]
[1688264548068,1.42850902,1918.2,1918.1,5.00782]
[1688264550871,1.42850902,1918.2,1918.1,0.31282]
[1688264551064,2.36435475,1918.2,1918.0,5.00786]
[1688264554476,4.695,1918.1,1918.0,3e-05]
[1688264554666,5.00782,1918.1,1918.0,3e-05]
[1688264554866,6.1909329,1918.1,1918.0,3e-05]
[1688264555063,9.3987329,1918.1,1918.0,3e-05]
[1688264555268,10.33457863,1918.1,1918.0,3e-05]
[1688264561378,2.43177863,1918.1,1918.0,5.29457635]
[1688264561581,1.02538644,1918.1,1918.0,5.29457635]
[1688264564590,0.71256644,1918.1,1918.0,8.50237635]
[1688264565091,0.31278,1918.4,1918.0,8.50237635]
[1688264565279,0.31278,1918.4,1918.3,4.695]
[1688264565590,0.31278,1918.4,1918.3,5.29449635]
[1688264565978,0.31278,1918.4,1918.3,5.86198047]
[1688264574993,0.93617609,1918.6,1918.3,5.86198047]
[1688264575197,0.93617609,1918.6,1918.5,5.00775]
[1688264575198,1.71807609,1918.6,1918.5,5.00775]